[Event "Titled Tuesday Blitz May 23 Early 2023"]
[White "Mika, Tomasz"]
[Black "Mgeladze, Tamaz"]
[WhiteFideId "1132970"]
[BlackFideId "13601202"]
[WhiteElo "2179"]
[BlackElo "2288"]
[Result "0-1"]
[Round "01"]
[TimeControl "180+2"]
[Date "2023.05.23"]
[WhiteClock "0:00:00"]
[BlackClock "0:00:10"]

1. d4 {[%clk 0:03:00]}  Nf6 {[%clk 0:02:59]} 2. Bf4 {[%clk 0:03:00]}  g6 {[%clk 0:02:59]} 3. Nc3 {[%clk 0:03:00]}  Bg7 {[%clk 0:03:00]} 4. e4 {[%clk 0:03:00]}  d6 {[%clk 0:03:00]} 5. Qd2 {[%clk 0:03:00]}  O-O {[%clk 0:03:00]} 6. Nf3 {[%clk 0:02:58]}  Bg4 {[%clk 0:02:58]} 7. O-O-O {[%clk 0:02:55]}  Nc6 {[%clk 0:02:55]} 8. Qe3 {[%clk 0:02:55]}  Nd7 {[%clk 0:02:49]} 9. d5 {[%clk 0:02:48]}  Nce5 {[%clk 0:02:49]} 10. Be2 {[%clk 0:02:48]}  Bxf3 {[%clk 0:02:47]} 11. gxf3 {[%clk 0:02:48]}  c6 {[%clk 0:02:47]} 12. Bh6 {[%clk 0:02:47]}  Bxh6 {[%clk 0:02:41]} 13. Qxh6 {[%clk 0:02:46]}  f6 {[%clk 0:02:42]} 14. h4 {[%clk 0:02:43]}  Nf7 {[%clk 0:02:41]} 15. Qe3 {[%clk 0:02:40]}  Rc8 {[%clk 0:02:31]} 16. Rdg1 {[%clk 0:02:39]}  cxd5 {[%clk 0:02:28]} 17. Nxd5 {[%clk 0:02:39]}  e6 {[%clk 0:02:26]} 18. Nf4 {[%clk 0:02:25]}  Qe7 {[%clk 0:02:07]} 19. Rg2 {[%clk 0:01:51]}  Nde5 {[%clk 0:02:03]} 20. Rhg1 {[%clk 0:01:43]}  Kh8 {[%clk 0:01:59]} 21. Qb3 {[%clk 0:01:36]}  Rfe8 {[%clk 0:01:55]} 22. Bb5 {[%clk 0:01:31]}  Nc6 {[%clk 0:01:53]} 23. Rxg6 {[%clk 0:01:21]}  Nd4 {[%clk 0:01:53]} 24. Qd3 {[%clk 0:01:19]}  Nxb5 {[%clk 0:01:52]} 25. Qxb5 {[%clk 0:01:20]}  Qc7 {[%clk 0:01:48]} 26. c3 {[%clk 0:01:12]}  hxg6 {[%clk 0:01:46]} 27. Nxg6+ {[%clk 0:01:00]}  Kh7 {[%clk 0:01:45]} 28. Qh5+ {[%clk 0:00:19]}  Nh6 {[%clk 0:01:45]} 29. Ne5 {[%clk 0:00:16]}  Rg8 {[%clk 0:00:30]} 30. Rg6 {[%clk 0:00:16]}  Rxg6 {[%clk 0:00:30]} 31. Qxg6+ {[%clk 0:00:16]}  Kh8 {[%clk 0:00:31]} 32. Qxh6+ {[%clk 0:00:17]}  Qh7 {[%clk 0:00:31]} 33. Qxf6+ {[%clk 0:00:16]}  Qg7 {[%clk 0:00:31]} 34. Nf7+ {[%clk 0:00:13]}  Kg8 {[%clk 0:00:29]} 35. Qxg7+ {[%clk 0:00:08]}  Kxg7 {[%clk 0:00:28]} 36. Nxd6 {[%clk 0:00:08]}  Rb8 {[%clk 0:00:21]} 37. Kd2 {[%clk 0:00:08]}  Kf6 {[%clk 0:00:18]} 38. f4 {[%clk 0:00:07]}  e5 {[%clk 0:00:17]} 39. Ke3 {[%clk 0:00:07]}  b6 {[%clk 0:00:15]} 40. Nc4 {[%clk 0:00:05]}  exf4+ {[%clk 0:00:15]} 41. Kxf4 {[%clk 0:00:06]}  Rh8 {[%clk 0:00:15]} 42. Ke3 {[%clk 0:00:06]}  Rxh4 {[%clk 0:00:15]} 43. f3 {[%clk 0:00:06]}  Rh2 {[%clk 0:00:15]} 44. Nd2 {[%clk 0:00:06]}  Ke6 {[%clk 0:00:14]} 45. c4 {[%clk 0:00:06]}  a5 {[%clk 0:00:14]} 46. b3 {[%clk 0:00:06]}  Kd6 {[%clk 0:00:15]} 47. a3 {[%clk 0:00:06]}  Rh3 {[%clk 0:00:14]} 48. b4 {[%clk 0:00:06]}  a4 {[%clk 0:00:14]} 49. Kd4 {[%clk 0:00:05]}  Rh1 {[%clk 0:00:14]} 50. f4 {[%clk 0:00:05]}  Rd1 {[%clk 0:00:13]} 51. Kc3 {[%clk 0:00:03]}  Ra1 {[%clk 0:00:14]} 52. e5+ {[%clk 0:00:04]}  Ke6 {[%clk 0:00:13]} 53. Kd4 {[%clk 0:00:03]}  Rxa3 {[%clk 0:00:13]} 54. Ne4 {[%clk 0:00:03]}  Ra1 {[%clk 0:00:12]} 55. c5 {[%clk 0:00:03]}  bxc5+ {[%clk 0:00:11]} 56. Nxc5+ {[%clk 0:00:04]}  Kf5 {[%clk 0:00:11]} 57. b5 {[%clk 0:00:04]}  a3 {[%clk 0:00:11]} 58. Kc3 {[%clk 0:00:03]}  Rc1+ {[%clk 0:00:10]} 59. Kb3 {[%clk 0:00:00]}  Rxc5 {[%clk 0:00:10]} 0-1


[Site "https://www.chess.com"]

[Event "Titled Tuesday Blitz May 23 Early 2023"]
[White "Rodriguez, Santiago"]
[Black "Goltsev, Dmitry"]
[WhiteFideId "3000591"]
[BlackFideId "24176710"]
[WhiteElo "2249"]
[BlackElo "2356"]
[Result "1-0"]
[Round "01"]
[TimeControl "180+2"]
[Date "2023.05.23"]
[WhiteClock "0:00:35"]
[BlackClock "0:01:46"]

1. d4 {[%clk 0:02:59]}  Nf6 {[%clk 0:03:00]} 2. Bg5 {[%clk 0:02:58]}  c5 {[%clk 0:02:59]} 3. d5 {[%clk 0:02:57]}  Qb6 {[%clk 0:02:58]} 4. Nc3 {[%clk 0:02:57]}  Qxb2 {[%clk 0:02:55]} 5. Bd2 {[%clk 0:02:58]}  Qb6 {[%clk 0:02:52]} 6. e4 {[%clk 0:02:58]}  d6 {[%clk 0:02:52]} 7. f4 {[%clk 0:02:59]}  e5 {[%clk 0:02:52]} 8. Nf3 {[%clk 0:02:59]}  exf4 {[%clk 0:02:50]} 9. Rb1 {[%clk 0:02:57]}  Qc7 {[%clk 0:02:46]} 10. Bxf4 {[%clk 0:02:57]}  a6 {[%clk 0:02:46]} 11. e5 {[%clk 0:02:56]}  dxe5 {[%clk 0:02:46]} 12. Bxe5 {[%clk 0:02:53]}  Bd6 {[%clk 0:02:47]} 13. Bxf6 {[%clk 0:02:54]}  gxf6 {[%clk 0:02:47]} 14. Bd3 {[%clk 0:02:46]}  Bg4 {[%clk 0:02:43]} 15. O-O {[%clk 0:02:45]}  Bxh2+ {[%clk 0:02:43]} 16. Kh1 {[%clk 0:02:43]}  Be5 {[%clk 0:02:42]} 17. Ne4 {[%clk 0:02:36]}  Nd7 {[%clk 0:02:42]} 18. d6 {[%clk 0:02:27]}  Qc6 {[%clk 0:02:39]} 19. Nxe5 {[%clk 0:02:21]}  Nxe5 {[%clk 0:02:21]} 20. Nxf6+ {[%clk 0:02:18]}  Kf8 {[%clk 0:02:19]} 21. Nxg4 {[%clk 0:02:08]}  Rg8 {[%clk 0:02:19]} 22. Bf5 {[%clk 0:01:39]}  h5 {[%clk 0:02:16]} 23. Ne3 {[%clk 0:01:14]}  Rg3 {[%clk 0:02:15]} 24. Qxh5 {[%clk 0:01:11]}  Kg7 {[%clk 0:02:09]} 25. Qh7+ {[%clk 0:01:07]}  Kf8 {[%clk 0:02:06]} 26. Qh8+ {[%clk 0:01:07]}  Rg8 {[%clk 0:02:05]} 27. Qxe5 {[%clk 0:01:07]}  Re8 {[%clk 0:02:05]} 28. Qd5 {[%clk 0:01:00]}  Qa4 {[%clk 0:01:58]} 29. Rxb7 {[%clk 0:00:56]}  Rg7 {[%clk 0:01:48]} 30. Rxf7+ {[%clk 0:00:35]}  Rxf7 {[%clk 0:01:49]} 31. Qxf7+ {[%clk 0:00:35]}  Kxf7 {[%clk 0:01:43]} 32. Bd7+ {[%clk 0:00:36]}  Qf4 {[%clk 0:01:42]} 33. Rxf4+ {[%clk 0:00:35]}  Kg6 {[%clk 0:01:43]} 34. Bxe8+ {[%clk 0:00:35]}  Kg5 {[%clk 0:01:44]} 35. Rf5+ {[%clk 0:00:35]}  Kh4 {[%clk 0:01:44]} 36. d7 {[%clk 0:00:36]}  Kg3 {[%clk 0:01:45]} 37. d8=Q {[%clk 0:00:35]}  c4 {[%clk 0:01:46]} 38. Qg5# {[%clk 0:00:35]} 1-0


[Site "https://www.chess.com"]

[Event "Titled Tuesday Blitz May 23 Early 2023"]
[White "Weetik, Vjacheslav"]
[Black "Golubev, Mikhail"]
[WhiteFideId "4153472"]
[BlackFideId "14100983"]
[WhiteElo "2469"]
[BlackElo "2374"]
[Result "1-0"]
[Round "01"]
[TimeControl "180+2"]
[Date "2023.05.23"]
[WhiteClock "0:00:06"]
[BlackClock "0:00:00"]

1. d4 {[%clk 0:02:59]}  Nf6 {[%clk 0:02:59]} 2. c4 {[%clk 0:02:59]}  g6 {[%clk 0:02:59]} 3. Nc3 {[%clk 0:02:59]}  Bg7 {[%clk 0:03:00]} 4. e4 {[%clk 0:02:59]}  d6 {[%clk 0:03:00]} 5. Nf3 {[%clk 0:03:00]}  O-O {[%clk 0:02:59]} 6. Be2 {[%clk 0:03:00]}  e5 {[%clk 0:02:59]} 7. O-O {[%clk 0:03:00]}  Nc6 {[%clk 0:02:59]} 8. dxe5 {[%clk 0:03:01]}  dxe5 {[%clk 0:02:58]} 9. Bg5 {[%clk 0:03:01]}  Qxd1 {[%clk 0:02:55]} 10. Rfxd1 {[%clk 0:03:00]}  Bg4 {[%clk 0:02:51]} 11. h3 {[%clk 0:03:01]}  Bxf3 {[%clk 0:02:50]} 12. Bxf3 {[%clk 0:03:02]}  Nd4 {[%clk 0:02:45]} 13. Nd5 {[%clk 0:03:02]}  Nxd5 {[%clk 0:02:39]} 14. cxd5 {[%clk 0:03:03]}  f5 {[%clk 0:02:31]} 15. Rac1 {[%clk 0:03:02]}  Rf7 {[%clk 0:02:28]} 16. Kf1 {[%clk 0:02:57]}  Nxf3 {[%clk 0:02:09]} 17. gxf3 {[%clk 0:02:56]}  fxe4 {[%clk 0:02:02]} 18. fxe4 {[%clk 0:02:55]}  Bf8 {[%clk 0:02:02]} 19. Ke2 {[%clk 0:02:52]}  Bd6 {[%clk 0:02:01]} 20. Rc4 {[%clk 0:02:36]}  Raf8 {[%clk 0:01:58]} 21. Be3 {[%clk 0:02:36]}  a5 {[%clk 0:01:48]} 22. Rg1 {[%clk 0:02:22]}  b6 {[%clk 0:01:41]} 23. Rg2 {[%clk 0:02:12]}  Kg7 {[%clk 0:01:38]} 24. h4 {[%clk 0:02:07]}  h6 {[%clk 0:01:28]} 25. Rc1 {[%clk 0:02:03]}  Kh7 {[%clk 0:01:24]} 26. Rcg1 {[%clk 0:02:00]}  Rf6 {[%clk 0:01:24]} 27. Kd3 {[%clk 0:01:55]}  R8f7 {[%clk 0:01:11]} 28. Kc4 {[%clk 0:01:53]}  Rg7 {[%clk 0:00:43]} 29. Kb5 {[%clk 0:01:51]}  Rf3 {[%clk 0:00:41]} 30. Rg3 {[%clk 0:01:43]}  Rf6 {[%clk 0:00:37]} 31. Rc1 {[%clk 0:01:34]}  Rgf7 {[%clk 0:00:34]} 32. Rc6 {[%clk 0:01:31]}  Kg7 {[%clk 0:00:24]} 33. a4 {[%clk 0:01:22]}  Bf8 {[%clk 0:00:17]} 34. Rg1 {[%clk 0:01:14]}  Rxc6 {[%clk 0:00:15]} 35. Kxc6 {[%clk 0:01:10]}  Kf6 {[%clk 0:00:12]} 36. Rc1 {[%clk 0:01:00]}  Kg7 {[%clk 0:00:10]} 37. Kb7 {[%clk 0:00:51]}  Bd6 {[%clk 0:00:10]} 38. Kc6 {[%clk 0:00:44]}  Bf8 {[%clk 0:00:08]} 39. Rg1 {[%clk 0:00:37]}  Bb4 {[%clk 0:00:07]} 40. Rg2 {[%clk 0:00:35]}  Bf8 {[%clk 0:00:06]} 41. Bd2 {[%clk 0:00:36]}  Bd6 {[%clk 0:00:05]} 42. Bc3 {[%clk 0:00:36]}  Kh7 {[%clk 0:00:04]} 43. Bd2 {[%clk 0:00:23]}  Kg7 {[%clk 0:00:04]} 44. Rh2 {[%clk 0:00:22]}  Bf8 {[%clk 0:00:04]} 45. Be3 {[%clk 0:00:21]}  Bb4 {[%clk 0:00:04]} 46. h5 {[%clk 0:00:22]}  g5 {[%clk 0:00:03]} 47. Rh1 {[%clk 0:00:20]}  Bf8 {[%clk 0:00:03]} 48. Rc1 {[%clk 0:00:19]}  Bb4 {[%clk 0:00:03]} 49. Kb5 {[%clk 0:00:18]}  Bd6 {[%clk 0:00:03]} 50. Rc6 {[%clk 0:00:18]}  Rd7 {[%clk 0:00:03]} 51. b3 {[%clk 0:00:17]}  Kf7 {[%clk 0:00:02]} 52. Ka6 {[%clk 0:00:11]}  Ke7 {[%clk 0:00:03]} 53. Kb7 {[%clk 0:00:11]}  Kd8 {[%clk 0:00:03]} 54. Rc1 {[%clk 0:00:07]}  Rf7 {[%clk 0:00:02]} 55. Kc6 {[%clk 0:00:07]}  Rf6 {[%clk 0:00:02]} 56. Kb5 {[%clk 0:00:05]}  Kd7 {[%clk 0:00:00]} 57. Rc6 {[%clk 0:00:06]} 1-0


[Site "https://www.chess.com"]

[Event "Titled Tuesday Blitz May 23 Early 2023"]
[White "Mogirzan, Matei-Valeriu"]
[Black "Vakhlamov, Igor L."]
[WhiteFideId "1257455"]
[BlackFideId "24126748"]
[WhiteElo "1733"]
[BlackElo "2407"]
[Result "0-1"]
[Round "01"]
[TimeControl "180+2"]
[Date "2023.05.23"]
[WhiteClock "0:00:04"]
[BlackClock "0:00:11"]

1. e4 {[%clk 0:03:00]}  c5 {[%clk 0:02:59]} 2. Nf3 {[%clk 0:03:00]}  e6 {[%clk 0:03:00]} 3. d4 {[%clk 0:02:58]}  cxd4 {[%clk 0:03:00]} 4. Nxd4 {[%clk 0:02:59]}  Nf6 {[%clk 0:03:01]} 5. Nc3 {[%clk 0:02:56]}  Nc6 {[%clk 0:03:01]} 6. f4 {[%clk 0:02:52]}  Bb4 {[%clk 0:02:57]} 7. e5 {[%clk 0:02:47]}  Nd5 {[%clk 0:02:55]} 8. Qd3 {[%clk 0:02:44]}  O-O {[%clk 0:02:42]} 9. a3 {[%clk 0:02:38]}  Bxc3+ {[%clk 0:02:40]} 10. bxc3 {[%clk 0:02:38]}  Qa5 {[%clk 0:02:12]} 11. Bd2 {[%clk 0:02:34]}  Qa4 {[%clk 0:01:31]} 12. Be2 {[%clk 0:02:12]}  b6 {[%clk 0:01:26]} 13. O-O {[%clk 0:02:02]}  Bb7 {[%clk 0:01:23]} 14. Nb3 {[%clk 0:01:25]}  Rac8 {[%clk 0:01:16]} 15. Qg3 {[%clk 0:00:55]}  Nce7 {[%clk 0:00:57]} 16. Nd4 {[%clk 0:00:50]}  Ba6 {[%clk 0:00:46]} 17. Bd3 {[%clk 0:00:32]}  Bxd3 {[%clk 0:00:43]} 18. Qxd3 {[%clk 0:00:33]}  Qc4 {[%clk 0:00:40]} 19. Nb5 {[%clk 0:00:22]}  Nf5 {[%clk 0:00:17]} 20. g4 {[%clk 0:00:19]}  Nh4 {[%clk 0:00:14]} 21. Nd6 {[%clk 0:00:17]}  Qxd3 {[%clk 0:00:14]} 22. cxd3 {[%clk 0:00:16]}  Rc7 {[%clk 0:00:15]} 23. c4 {[%clk 0:00:16]}  Ne7 {[%clk 0:00:15]} 24. Bb4 {[%clk 0:00:13]}  Nc6 {[%clk 0:00:15]} 25. Nb5 {[%clk 0:00:12]}  Nxb4 {[%clk 0:00:14]} 26. Nxc7 {[%clk 0:00:10]}  Nxd3 {[%clk 0:00:15]} 27. Rad1 {[%clk 0:00:10]}  Nc5 {[%clk 0:00:14]} 28. f5 {[%clk 0:00:06]}  h5 {[%clk 0:00:10]} 29. fxe6 {[%clk 0:00:02]}  dxe6 {[%clk 0:00:11]} 30. gxh5 {[%clk 0:00:03]}  Nf5 {[%clk 0:00:11]} 31. Nb5 {[%clk 0:00:03]}  Ne3 {[%clk 0:00:12]} 32. Rfe1 {[%clk 0:00:02]}  Nxd1 {[%clk 0:00:12]} 33. Rxd1 {[%clk 0:00:03]}  a6 {[%clk 0:00:12]} 34. Nc3 {[%clk 0:00:03]}  Rc8 {[%clk 0:00:12]} 35. Rd6 {[%clk 0:00:03]}  Rb8 {[%clk 0:00:10]} 36. a4 {[%clk 0:00:03]}  Kh7 {[%clk 0:00:10]} 37. Kg2 {[%clk 0:00:03]}  Kh6 {[%clk 0:00:11]} 38. Kg3 {[%clk 0:00:03]}  Kxh5 {[%clk 0:00:10]} 39. Rc6 {[%clk 0:00:04]}  Rb7 {[%clk 0:00:10]} 40. Rc8 {[%clk 0:00:04]}  Kg6 {[%clk 0:00:10]} 41. h4 {[%clk 0:00:04]}  Nd7 {[%clk 0:00:10]} 42. Kf4 {[%clk 0:00:03]}  f6 {[%clk 0:00:10]} 43. exf6 {[%clk 0:00:02]}  gxf6 {[%clk 0:00:11]} 44. Rh8 {[%clk 0:00:02]}  e5+ {[%clk 0:00:11]} 45. Ke4 {[%clk 0:00:02]}  Nc5+ {[%clk 0:00:12]} 46. Kd5 {[%clk 0:00:03]}  Rc7 {[%clk 0:00:11]} 47. Kd6 {[%clk 0:00:03]}  Rh7 {[%clk 0:00:09]} 48. Rg8+ {[%clk 0:00:03]}  Kf5 {[%clk 0:00:09]} 49. Kc6 {[%clk 0:00:02]}  Rxh4 {[%clk 0:00:09]} 50. Kxb6 {[%clk 0:00:02]}  Rxc4 {[%clk 0:00:09]} 51. Nd5 {[%clk 0:00:02]}  Nxa4+ {[%clk 0:00:09]} 52. Kxa6 {[%clk 0:00:02]}  Rd4 {[%clk 0:00:10]} 53. Ne3+ {[%clk 0:00:01]}  Ke4 {[%clk 0:00:10]} 54. Ng4 {[%clk 0:00:01]}  f5 {[%clk 0:00:11]} 55. Nf6+ {[%clk 0:00:02]}  Kf3 {[%clk 0:00:11]} 56. Kb5 {[%clk 0:00:02]}  Nc3+ {[%clk 0:00:11]} 57. Kc5 {[%clk 0:00:02]}  Ne4+ {[%clk 0:00:12]} 58. Nxe4 {[%clk 0:00:03]}  Kxe4 {[%clk 0:00:13]} 59. Rg1 {[%clk 0:00:03]}  f4 {[%clk 0:00:13]} 60. Kb6 {[%clk 0:00:04]}  f3 {[%clk 0:00:14]} 61. Kb7 {[%clk 0:00:04]}  f2 {[%clk 0:00:14]} 62. Rb1 {[%clk 0:00:05]}  Kf3 {[%clk 0:00:14]} 63. Rc1 {[%clk 0:00:03]}  Kg2 {[%clk 0:00:14]} 64. Rb1 {[%clk 0:00:04]}  f1=Q {[%clk 0:00:12]} 65. Rb6 {[%clk 0:00:05]}  Qf7+ {[%clk 0:00:11]} 66. Ka8 {[%clk 0:00:04]}  Rd8+ {[%clk 0:00:11]} 0-1


[Site "https://www.chess.com"]

[Event "Titled Tuesday Blitz May 23 Early 2023"]
[White "Artemenko, Oleg"]
[Black "GMFYHR1"]
[WhiteFideId "14201798"]
[WhiteElo "2287"]
[BlackElo "2402"]
[Result "1-0"]
[Round "01"]
[TimeControl "180+2"]
[Date "2023.05.23"]
[WhiteClock "0:00:31"]
[BlackClock "0:00:37"]

1. d4 {[%clk 0:02:59]}  Nf6 {[%clk 0:02:56]} 2. c4 {[%clk 0:02:59]}  e6 {[%clk 0:02:56]} 3. Nc3 {[%clk 0:02:59]}  Bb4 {[%clk 0:02:56]} 4. e3 {[%clk 0:03:00]}  O-O {[%clk 0:02:55]} 5. Bd2 {[%clk 0:02:59]}  d5 {[%clk 0:02:55]} 6. Nf3 {[%clk 0:02:58]}  c5 {[%clk 0:02:55]} 7. a3 {[%clk 0:02:57]}  Bxc3 {[%clk 0:02:55]} 8. Bxc3 {[%clk 0:02:58]}  Nc6 {[%clk 0:02:55]} 9. dxc5 {[%clk 0:02:46]}  Ne4 {[%clk 0:02:55]} 10. Rc1 {[%clk 0:02:44]}  Nxc3 {[%clk 0:02:51]} 11. Rxc3 {[%clk 0:02:45]}  a5 {[%clk 0:02:44]} 12. cxd5 {[%clk 0:02:37]}  exd5 {[%clk 0:02:44]} 13. Nd4 {[%clk 0:02:36]}  a4 {[%clk 0:02:37]} 14. Be2 {[%clk 0:02:32]}  Ra5 {[%clk 0:02:07]} 15. O-O {[%clk 0:02:31]}  Qe7 {[%clk 0:02:01]} 16. Bf3 {[%clk 0:02:21]}  Rxc5 {[%clk 0:01:55]} 17. Rxc5 {[%clk 0:02:20]}  Qxc5 {[%clk 0:01:54]} 18. Qxa4 {[%clk 0:02:21]}  Ne5 {[%clk 0:01:47]} 19. Be2 {[%clk 0:02:19]}  Bd7 {[%clk 0:01:39]} 20. Bb5 {[%clk 0:01:55]}  Bg4 {[%clk 0:01:27]} 21. h3 {[%clk 0:01:32]}  Bh5 {[%clk 0:01:23]} 22. f4 {[%clk 0:01:29]}  Nc6 {[%clk 0:00:48]} 23. Bxc6 {[%clk 0:01:27]}  bxc6 {[%clk 0:00:49]} 24. g4 {[%clk 0:01:27]}  Qe7 {[%clk 0:00:50]} 25. Qb3 {[%clk 0:00:31]}  Qh4 {[%clk 0:00:49]} 26. Kg2 {[%clk 0:00:31]}  Bxg4 {[%clk 0:00:46]} 27. hxg4 {[%clk 0:00:32]}  Qxg4+ {[%clk 0:00:46]} 28. Kf2 {[%clk 0:00:33]}  c5 {[%clk 0:00:45]} 29. Nf3 {[%clk 0:00:31]}  c4 {[%clk 0:00:44]} 30. Qc3 {[%clk 0:00:31]}  Re8 {[%clk 0:00:37]} 31. Rg1 {[%clk 0:00:31]} 1-0


[Site "https://www.chess.com"]

[Event "Titled Tuesday Blitz May 23 Early 2023"]
[White "Fierro Baquero, Martha L."]
[Black "Matinian, Nikita"]
[WhiteFideId "3600270"]
[BlackFideId "24129100"]
[WhiteElo "2259"]
[BlackElo "2422"]
[Result "0-1"]
[Round "01"]
[TimeControl "180+2"]
[Date "2023.05.23"]
[WhiteClock "0:00:08"]
[BlackClock "0:01:21"]

1. g3 {[%clk 0:02:55]}  e5 {[%clk 0:02:58]} 2. Bg2 {[%clk 0:02:54]}  Nc6 {[%clk 0:02:58]} 3. c4 {[%clk 0:02:54]}  h5 {[%clk 0:02:58]} 4. h4 {[%clk 0:02:53]}  g6 {[%clk 0:02:56]} 5. Nc3 {[%clk 0:02:52]}  Bg7 {[%clk 0:02:55]} 6. Nf3 {[%clk 0:02:50]}  d6 {[%clk 0:02:55]} 7. O-O {[%clk 0:02:48]}  Nge7 {[%clk 0:02:54]} 8. Rb1 {[%clk 0:02:47]}  Bg4 {[%clk 0:02:53]} 9. b4 {[%clk 0:02:46]}  Qd7 {[%clk 0:02:54]} 10. b5 {[%clk 0:02:45]}  Nd8 {[%clk 0:02:53]} 11. a4 {[%clk 0:02:43]}  Bh3 {[%clk 0:02:49]} 12. Nd5 {[%clk 0:02:40]}  Bxg2 {[%clk 0:02:45]} 13. Kxg2 {[%clk 0:02:39]}  c6 {[%clk 0:02:39]} 14. bxc6 {[%clk 0:02:35]}  bxc6 {[%clk 0:02:38]} 15. Nc3 {[%clk 0:02:34]}  d5 {[%clk 0:02:38]} 16. cxd5 {[%clk 0:02:28]}  cxd5 {[%clk 0:02:39]} 17. Ba3 {[%clk 0:02:28]}  e4 {[%clk 0:02:33]} 18. Ng5 {[%clk 0:02:21]}  Ndc6 {[%clk 0:02:23]} 19. Nb5 {[%clk 0:02:16]}  O-O {[%clk 0:02:17]} 20. Bb2 {[%clk 0:02:11]}  Bxb2 {[%clk 0:02:12]} 21. Rxb2 {[%clk 0:02:10]}  Rab8 {[%clk 0:02:12]} 22. Qb1 {[%clk 0:02:08]}  Nf5 {[%clk 0:02:04]} 23. d3 {[%clk 0:01:58]}  Nxh4+ {[%clk 0:01:56]} 24. gxh4 {[%clk 0:01:51]}  Qg4+ {[%clk 0:01:56]} 25. Kh2 {[%clk 0:01:51]}  Qxh4+ {[%clk 0:01:56]} 26. Nh3 {[%clk 0:01:50]}  Ne5 {[%clk 0:01:56]} 27. f3 {[%clk 0:01:41]}  exf3 {[%clk 0:01:49]} 28. exf3 {[%clk 0:01:40]}  Ng4+ {[%clk 0:01:49]} 29. fxg4 {[%clk 0:01:30]}  hxg4 {[%clk 0:01:50]} 30. Kg1 {[%clk 0:00:59]}  gxh3 {[%clk 0:01:44]} 31. Qe1 {[%clk 0:00:34]}  Qxe1 {[%clk 0:01:43]} 32. Rxe1 {[%clk 0:00:33]}  a6 {[%clk 0:01:44]} 33. Reb1 {[%clk 0:00:31]}  axb5 {[%clk 0:01:43]} 34. axb5 {[%clk 0:00:30]}  Rb6 {[%clk 0:01:41]} 35. Kh2 {[%clk 0:00:30]}  Re8 {[%clk 0:01:41]} 36. Kxh3 {[%clk 0:00:30]}  Re3+ {[%clk 0:01:41]} 37. Kg4 {[%clk 0:00:30]}  Rxd3 {[%clk 0:01:42]} 38. Rc1 {[%clk 0:00:28]}  Rd4+ {[%clk 0:01:41]} 39. Kf3 {[%clk 0:00:27]}  Kg7 {[%clk 0:01:33]} 40. Ke3 {[%clk 0:00:23]}  Re4+ {[%clk 0:01:31]} 41. Kd3 {[%clk 0:00:24]}  Kf6 {[%clk 0:01:25]} 42. Rc6+ {[%clk 0:00:18]}  Rxc6 {[%clk 0:01:25]} 43. bxc6 {[%clk 0:00:19]}  Rc4 {[%clk 0:01:26]} 44. Rb6 {[%clk 0:00:19]}  Ke5 {[%clk 0:01:25]} 45. Rb7 {[%clk 0:00:19]}  f5 {[%clk 0:01:24]} 46. c7 {[%clk 0:00:18]}  g5 {[%clk 0:01:23]} 47. Kd2 {[%clk 0:00:16]}  g4 {[%clk 0:01:23]} 48. Ke3 {[%clk 0:00:15]}  f4+ {[%clk 0:01:24]} 49. Kf2 {[%clk 0:00:16]}  Rc2+ {[%clk 0:01:24]} 50. Kg1 {[%clk 0:00:15]}  g3 {[%clk 0:01:24]} 51. Ra7 {[%clk 0:00:13]}  f3 {[%clk 0:01:23]} 52. Ra1 {[%clk 0:00:11]}  Rxc7 {[%clk 0:01:22]} 53. Re1+ {[%clk 0:00:11]}  Kf4 {[%clk 0:01:22]} 54. Rd1 {[%clk 0:00:11]}  Rh7 {[%clk 0:01:21]} 55. Rd4+ {[%clk 0:00:11]}  Ke3 {[%clk 0:01:21]} 56. Re4+ {[%clk 0:00:08]}  dxe4 {[%clk 0:01:21]} 0-1


[Site "https://www.chess.com"]

[Event "Titled Tuesday Blitz May 23 Early 2023"]
[White "Kohler, Aran"]
[Black "Jia, Haoxiang"]
[WhiteFideId "1002856"]
[BlackFideId "8602999"]
[WhiteElo "2394"]
[BlackElo "2702"]
[Result "1-0"]
[Round "01"]
[TimeControl "180+2"]
[Date "2023.05.23"]
[WhiteClock "0:00:07"]
[BlackClock "0:00:17"]

1. d4 {[%clk 0:03:00]}  Nf6 {[%clk 0:02:50]} 2. Nf3 {[%clk 0:03:01]}  g6 {[%clk 0:02:46]} 3. Bg5 {[%clk 0:03:00]}  Bg7 {[%clk 0:02:47]} 4. Nbd2 {[%clk 0:03:01]}  O-O {[%clk 0:02:48]} 5. e3 {[%clk 0:03:01]}  d6 {[%clk 0:02:47]} 6. Bd3 {[%clk 0:02:58]}  c5 {[%clk 0:02:45]} 7. c3 {[%clk 0:02:58]}  Nc6 {[%clk 0:02:45]} 8. h4 {[%clk 0:02:57]}  h6 {[%clk 0:02:26]} 9. h5 {[%clk 0:02:52]}  gxh5 {[%clk 0:01:19]} 10. Bxf6 {[%clk 0:02:43]}  Bxf6 {[%clk 0:01:17]} 11. Rxh5 {[%clk 0:02:44]}  Bg7 {[%clk 0:01:17]} 12. Qc2 {[%clk 0:02:21]}  cxd4 {[%clk 0:01:17]} 13. exd4 {[%clk 0:02:15]}  e5 {[%clk 0:01:01]} 14. Bh7+ {[%clk 0:02:03]}  Kh8 {[%clk 0:01:01]} 15. O-O-O {[%clk 0:01:44]}  exd4 {[%clk 0:00:53]} 16. Rdh1 {[%clk 0:01:37]}  dxc3 {[%clk 0:00:34]} 17. bxc3 {[%clk 0:01:34]}  Qf6 {[%clk 0:00:34]} 18. Ne4 {[%clk 0:01:23]}  Qf4+ {[%clk 0:00:34]} 19. Kb1 {[%clk 0:01:10]}  d5 {[%clk 0:00:28]} 20. Neg5 {[%clk 0:01:01]}  f5 {[%clk 0:00:28]} 21. Bg6 {[%clk 0:00:43]}  Ne7 {[%clk 0:00:22]} 22. g3 {[%clk 0:00:20]}  Qd6 {[%clk 0:00:20]} 23. Nf7+ {[%clk 0:00:19]}  Rxf7 {[%clk 0:00:20]} 24. Bxf7 {[%clk 0:00:20]}  Qb6+ {[%clk 0:00:20]} 25. Kc1 {[%clk 0:00:18]}  Qf6 {[%clk 0:00:20]} 26. Ng5 {[%clk 0:00:13]}  f4 {[%clk 0:00:17]} 27. Qh7# {[%clk 0:00:07]} 1-0


[Site "https://www.chess.com"]